Cogmind - Beta 15 @@@ ROGUE MODE // 2025.08.10 @ 21:33:47 Player: Klevski Result: Destroyed by YI-UF0 with YI-UF0's Doublenader Performance ------------- Evolutions (0) 0 Regions Visited (2) 400 Robots Destroyed (15) 75 Value Destroyed (240) 240 Prototype IDs (4) 80 Alien Tech Used (0) 0 Bonus (0) 0 TOTAL SCORE: 795 Bonus ------- None Cogmind --------- Core Integrity 0/250 Matter 300/300 Energy 93/100 System Corruption 0% Temperature Warning (320) Movement Core (400) Ox7 Location -10/Mines Parts ------- > --- POWER (1) -------- (None) > --- PROPULSION (2) --- (None) > --- UTILITY (2) ------ Large Storage Unit > --- WEAPON (2) ------- Beam Cannon > --- INVENTORY (15) --- Aluminum Leg Wheel Hover Unit Hover Unit Medium Storage Unit Small Battery (100) Visual Processing Unit Hacking Suite EM Pulse Gun EM Pulse Gun Beam Cannon Beam Cannon Datajack Mining Laser Peak State ------------ > --- POWER ------------ Ion Engine > --- PROPULSION ------- Light Treads Light Treads > --- UTILITY ---------- Large Storage Unit Backup Plating I > --- WEAPON ----------- EM Pulse Gun EM Pulse Gun > --- INVENTORY -------- Ion Engine Aluminum Leg Aluminum Leg Wheel Medium Storage Unit Hacking Suite Assault Rifle Datajack [Rating: 8] Favorites ----------- Power Ion Engine Engine Ion Engine Propulsion Light Treads Treads Light Treads Utility Backup Plating I Storage Large Storage Unit Protection Backup Plating I Weapon EM Pulse Gun Energy Gun EM Pulse Gun Energy Cannon Beam Cannon Build | -11 -10 -10 ------- Run | Yrd Mat Min Slots Evolved . | . . . Power . | . . . Propulsion . | . . . Utility . | . . . Weapon . | . . . Parts Attached 12 | 7 4 1 Power 3 | 2 . 1 Engine 3 | 2 . 1 Core . | . . . Reactor . | . . . Propulsion 2 | 2 . . Treads 2 | 2 . . Leg . | . . . Wheel . | . . . Hover . | . . . Flight . | . . . Utility 3 | 1 2 . Device . | . . . Storage 3 | 1 2 . Processor . | . . . Hackware . | . . . Protection . | . . . Artifact . | . . . Weapon 4 | 2 2 . Energy Gun 2 | 2 . . Energy Cannon 2 | . 2 . Ballistic Gun . | . . . Ballistic Cannon . | . . . Launcher . | . . . Special Weapon . | . . . Impact Weapon . | . . . Slashing Weapon . | . . . Piercing Weapon . | . . . Special Melee Weapon . | . . . Unidentified Prototypes . | . . . Parts Lost 6 | . . 6 Power 2 | . . 2 Propulsion 2 | . . 2 Utility 1 | . . 1 Weapon 1 | . . 1 Highest Loss Streak 6 | . . 6 To Critical Strikes . | . . . Average Backups 9 | 2 9 14 Power . | . 1 . Propulsion 3 | 1 3 4 Utility 2 | . 2 4 Weapon 1 | . 1 5 Tool/Special . | . . . Unused Backups 12 | . 2 10 Power . | . . . Propulsion 5 | . 1 4 Utility 3 | . . 3 Weapon 3 | . 1 2 Tool/Special 1 | . . 1 Average Slot Usage (%) 98 | . 99 92 Engine 14 | . 14 14 Treads 27 | . 27 24 Storage 14 | . 14 14 Protection 13 | . 13 10 Energy Gun 22 | . 24 . Energy Cannon 5 | . 3 26 Peak Build Rating 8 | 6 8 8 Average Rating 7 | 5 7 7 On Entrance 4 | . 6 8 Naked Turns . | . . . Heaviest Build 32 | 14 32 32 Greatest Support 40 | 40 40 40 Greatest Overweight (x) 4 | 4 . . Average Overweight (x) . | . . . Largest Inventory Capacity 15 | 8 15 15 Average Capacity 12 | 7 13 15 Most Carried 15 | 5 15 15 Average Carried 9 | 2 9 14 Final Capacity 15 | 8 15 15 Final Carried 15 | 5 15 14 Class Distribution -------------------- 100% | Mutant Dominant Class ---------------- Mutant | -10/Materials Mutant | -10/Mines Resources | -11 -10 -10 ----------- Run | Yrd Mat Min Matter Collected 320 | 248 72 . Remotely . | . . . Salvage Created 387 | . 387 . Parts 28 | . 28 . Haulers Intercepted 2 | . 2 . Recyclers Shooed . | . . . Parts Field Recycled . | . . . Retrieved Matter . | . . . Parts Self-Destructed . | . . . Prevented . | . . . Kills | -11 -10 -10 ------- Run | Yrd Mat Min Combat Hostiles Destroyed 8 | . 8 . Guns 5 | . 5 . AOE 2 | . 2 . Classes Destroyed 6 | . 6 . Worker 1 | . 1 . Hauler 2 | . 2 . Operator 1 | . 1 . Watcher 3 | . 3 . Swarmer 6 | . 6 . Grunt 2 | . 2 . Best Kill Streak 4 | . 4 . Combat Bots Only 3 | . 3 . Max Kills in Single Turn 2 | . 2 . Gunslinging 1 | . 1 . Exploded 1 | . 1 . Melee . | . . . Uniques/NPCs Destroyed . | . . . Combat | -11 -10 -10 -------- Run | Yrd Mat Min Hostile Shots Fired 62 | . 36 26 Missed 17 | . 13 4 Hits 45 | . 23 22 Projectile 45 | . 23 22 AOE 24 | . . 24 Critical Strikes 1 | . 1 . Damage Taken 1078 | . 354 724 Core 262 | . 40 222 Absorbed by Shields . | . . . Regen/Repaired (Parts) 108 | . 108 . Core Remaining (%) 100 | 100 . . Volleys Fired 35 | . 26 9 Largest 2 | . 2 2 Hottest 120 | . 80 120 Shots Fired 66 | . 52 14 Gun 52 | . 52 . Cannon 14 | . . 14 Launcher . | . . . Special . | . . . Kinetic . | . . . Thermal 14 | . . 14 Explosive . | . . . Electromagnetic 52 | . 52 . Robot Hit Streak 9 | . 9 4 Robot Miss Streak 6 | . 6 2 Penetration Max . | . . . Secondary Targets 3 | . 3 . Max Gunslinging Chain 1 | . 1 . Shots Hit Robots 40 | . 32 8 Core Hits 19 | . 17 2 Critical Kills . | . . . Critical Parts Destroyed . | . . . Critical Strikes 2 | . 2 . Corrupt 2 | . 2 . Melee Attacks . | . . . Impact . | . . . Slashing . | . . . Piercing . | . . . Sneak Attacks . | . . . Combat Hostiles . | . . . Follow-up Attacks . | . . . Damage Inflicted 965 | . 827 138 Guns 468 | . 468 . Cannons 138 | . . 138 Explosions 359 | . 359 . Melee . | . . . Ramming . | . . . Kinetic . | . . . Thermal 354 | . 216 138 Explosive 143 | . 143 . Electromagnetic 468 | . 468 . Impact . | . . . Slashing . | . . . Piercing . | . . . Highest Corruption . | . . . Average Corruption . | . . . Corruption Purged . | . . . Corruption Blocked . | . . . Overload Shots . | . . . Overflow Damage 6 | . . 6 Projectiles 6 | . . 6 Explosions . | . . . Melee . | . . . Knockbacks . | . . . Impact . | . . . Kinetic . | . . . Secondary . | . . . Self-Inflicted Damage 131 | . 131 . Shots 3 | . 3 . Rammed . | . . . Targets Rammed . | . . . Kicked . | . . . Crushed . | . . . Highest Temperature 320 | . 102 320 Average Temperature 55 | . 29 180 Received Heat Transfer 48 | . 48 . Siege Activations . | . . . Martial Activations . | . . . Shielding Activations . | . . . Robots Disrupted . | . . . Combat Hostiles . | . . . Robots Corrupted 2 | . 2 . Combat Hostiles 1 | . 1 . Parts Fried 2 | . 2 . Impact Corruptions . | . . . Robots Melted . | . . . Combat Hostiles . | . . . Parts Melted . | . . . Heat Transferred 496 | . 200 296 Parts Sabotaged . | . . . Parts Stolen . | . . . Parts Stripped . | . . . Power Chain Reactions 4 | . 4 . Alert | -11 -10 -10 ------- Run | Yrd Mat Min Maximum Alert Level . | . . . Low Security (%) 100 | 100 100 100 Level 1 . | . . . Level 2 . | . . . Level 3 . | . . . Level 4 . | . . . Level 5 . | . . . High Security . | . . . Max Security . | . . . Peak Influence 184 | . 184 3 Initial 3 | . . 3 Average 65 | . 76 . Influence Increases 375 | . 375 . Destroy 0b10 Robot/C 160 | . 160 . Destroy 0b10 Robot/NC 35 | . 35 . Destroy Leader 40 | . 40 . Successful Hack 10 | . 10 . Disable Machine 45 | . 45 . Destroy Structure 70 | . 70 . Lose Combat Pursuer 15 | . 15 . Influence Decreases 375 | . 366 9 Entered New Map 6 | . . 6 Time Decay 369 | . 366 3 Squads Dispatched . | . . . Investigation . | . . . Extermination . | . . . Reinforcement . | . . . Assault . | . . . Garrison . | . . . Intercept . | . . . Searches Triggered . | . . . Construction Impeded . | . . . Haulers Reinforced . | . . . Active Scanning Responses . | . . . Cargo Convoy Interrupts . | . . . Stealth | -11 -10 -10 --------- Run | Yrd Mat Min Distress Signals . | . . . Communications Jammed . | . . . Distress Signals . | . . . Times Spotted 14 | . 13 1 Peak Tracking Total 3 | . 3 1 Tactical Retreats 1 | . 1 . Traps | -11 -10 -10 ------- Run | Yrd Mat Min Traps Triggered . | . . . Indirectly . | . . . Trap Hack Attempts . | . . . Triggered . | . . . Disarmed . | . . . Reprogrammed . | . . . Reused . | . . . Traps Extracted . | . . . Installed . | . . . Triggered . | . . . Machines | -11 -10 -10 ---------- Run | Yrd Mat Min Machines Disabled 3 | . 3 . Max in Single Turn 2 | . 2 . Machines Repaired . | . . . Machines Dismantled . | . . . Machines Sabotaged . | . . . Overloaded Fab Kills . | . . . Hacking | -11 -10 -10 --------- Run | Yrd Mat Min Machines Accessed 7 | . 7 . Terminals 5 | . 5 . Fabricators . | . . . Repair Stations 1 | . 1 . Recycling Units 1 | . 1 . Scanalyzers . | . . . Garrison Access . | . . . Total Hacks 24 | . 24 . Successful 14 | . 14 . Failed 10 | . 10 . Catastrophic 1 | . 1 . Database Lockouts . | . . . Manual 10 | . 10 . Terminals 17 | . 17 . Fabricators . | . . . Repair Stations 4 | . 4 . Recycling Units 3 | . 3 . Scanalyzers . | . . . Garrison Access . | . . . Terminal Hacks 5 | . 5 . Robot Analysis 1 | . 1 . Prototype ID Bank 2 | . 2 . Locate Traps 2 | . 2 . Fabricator Hacks . | . . . Repair Station Hacks 3 | . 3 . Scan Component 1 | . 1 . Repair 1 | . 1 . Refit 1 | . 1 . Recycling Unit Hacks . | . . . Scanalyzer . | . . . Garrison Access Hacks . | . . . Unauthorized Hacks 6 | . 6 . Terminals 4 | . 4 . Botnet 3 | . 3 . Skim 1 | . 1 . Fabricators . | . . . Repair Stations . | . . . Recycling Units 2 | . 2 . Monitor 1 | . 1 . Recyclers 1 | . 1 . Scanalyzers . | . . . Garrison Access . | . . . Data Cores Recovered 1 | . 1 . Used . | . . . Hacking Detections 6 | . 6 . Full Trace Events . | . . . Feedback Events . | . . . Feedback Blocked . | . . . Robot Schematics Acquired . | . . . Robots Built . | . . . Authchips . | . . . Time . | . . . Total Robot Build Rating . | . . . Part Schematics Acquired . | . . . Parts Built . | . . . Authchips . | . . . Time . | . . . Total Part Build Rating . | . . . Parts Repaired 1 | . 1 . Time 26 | . 26 . Parts Recycled . | . . . Recycled Matter . | . . . Retrieved Matter . | . . . Retrieved Components . | . . . Parts Scanalyzed . | . . . Part Schematics Acquired . | . . . Parts Damaged . | . . . Bothacking | -11 -10 -10 ------------ Run | Yrd Mat Min Used RIF Installer . | . . . Robots Hacked . | . . . Non-combat . | . . . Combat . | . . . Robot Hacks Applied . | . . . Relay Couplers Released . | . . . Fabnet Peak Effective % . | . . . Robots Rewired . | . . . Allies Hacked . | . . . Hacks Repelled . | . . . Allies | -11 -10 -10 -------- Run | Yrd Mat Min Total Allies . | . . . Largest Group . | . . . Highest-Rated Group . | . . . Highest-Rated Ally . | . . . Total Orders . | . . . Ally Attacks . | . . . Total Damage . | . . . Kills . | . . . Allies Corrupted . | . . . Allies Melted . | . . . Intel | -11 -10 -10 ------- Run | Yrd Mat Min Active Infowar (turns) . | . . . Robot Analysis Total 1 | . 1 . Derelict Logs Recovered . | . . . Drone Launches . | . . . Drone Recoveries . | . . . Exploration | -11 -10 -10 ------------- Run | Yrd Mat Min Turns Passed 1174 | 93 1003 78 Spaces Moved 625 | 51 540 34 Core 13 | 13 . . Treads 612 | 38 540 34 Legs . | . . . Wheels . | . . . Hover . | . . . Flight . | . . . Fastest Speed 50 | 50 160 160 Average Speed 159 | 156 160 160 Slowest Speed 250 | 250 160 160 Overloaded Moves . | . . . Propulsion Burnouts . | . . . Robots Hopped . | . . . Potential Cave-ins . | . . . Cave-ins Triggered . | . . . Exploration Rate (%) 37 | 4 80 29 Regions Visited 2 Branch Regions 1 Pre-discovered Areas . | . . . Known Exits Taken . | . . . Unknown Exits Taken 2 | 1 1 . Scrap Searched . | . . . Spaces Dug . | . . . Terrain Destroyed 73 | . 73 . Melee . | . . . Projectile . | . . . AOE 73 | . 73 . Terrain Rammed . | . . . Walls Destroyed . | . . . Machines Disabled . | . . . Actions | -11 -10 -10 --------- Run | Yrd Mat Min Total 733 | 61 628 44 Wait 42 | . 42 . Move 623 | 50 539 34 Hop . | . . . Pick Up 14 | 4 10 . Fast Attach 9 | 6 3 . Attach 1 | . . 1 Detach 2 | . 2 . Swap 3 | 1 2 . Drop 4 | . 4 . Fire 35 | . 26 9 Melee . | . . . Ram . | . . . Kick . | . . . Crush . | . . . Escape Stasis . | . . . Rewire . | . . . Trap . | . . . Miscellaneous . | . . . Route ------- -11/Scrapyard -10/Materials (discovered 3 exits: [*Mat x2] / [*Min]) -10/Mines History --------- Turn | Location | Event 14 | -11/Scrapyard | Discovered new exit (range 16) 94 | -11/Scrapyard | Entered Materials 248 | -10/Materials | Discovered new exit (range 9) 300 | -10/Materials | Build established: Mutant 406 | -10/Materials | Discovered new exit (range 16) 517 | -10/Materials | Discovered new exit (range 16) 1014 | -10/Materials | Repaired Lgt. Treads 1097 | -10/Materials | Entered Mines 1160 | -10/Mines | Core integrity fell below 50% 1170 | -10/Mines | Core integrity fell below 20% 1175 | -10/Mines | Destroyed by YI-UF0 with YI-UF0's Doublenader Last Messages --------------- 01057_ K-01 Serf collects debris. 01093_ Dropped Aluminum Leg. 01093_ Acquired Mining Laser. LOCATION=UNKNOWN GOAL=ESCAPE Something is scanning the area. 01153_ Ion Engine destroyed. 01155_ T-07 Excavator destroyed. 01156_ The unstable cave ceiling collapses. 01157_ Backup Plating I destroyed. 01159_ Lgt. Treads destroyed. 01163_ YI-UF0 mumbles something. 01167_ Beam Cannon destroyed. 01168_ The unstable cave ceiling collapses. 01171_ Lgt. Treads destroyed. 01172_ The unstable cave ceiling collapses. 01173_ Ion Engine destroyed. 01174_ The unstable cave ceiling collapses. 01174_ Destroyed Shock Absorption System. 01175_ The unstable cave ceiling collapses. Map ----- +----------------------------------------------------+ | ???????????????????????????????????????????# #???? | | ????????????????????????????? ?????????????# ###?? | | ????????????????????????????? ????????????## ##? | | ????????????????????????????# ????????????# ## | | ???????????????????????????## #?????????### # | | ???????????????????????????# ?????????? | | ????????????????????????#### #???????????# | | ????????????????????????# #??????????## | | ????????????????????????# ?# ############ | | ????????????????????????# ?# | | ??????????????#?????????# ## | | ?????????????? ????##### ########## | | ?????????????? #### ##????????# | | ??????????????# ##????????## | | ??????????????? #????????## | | ??????????????#????# ##???????# | | ?????????????## ???# #???????# | | ?????????????# ??# #???????# ! | | ???????????? ?## #???????## | | ???????????? ?## ##????????## | | ???????????? ?### ##??????????## | | ???????????# ### #????????????## | | ????????????# [ #?????????????### | | ?????????????# = g # ##????????????????# | | ?????????????# #?????????????????? | | ??????????????????# @ #?????????????????? | | ??????????????????### # #?????????????????? | | ????????????????????# g ??????????????? | | ????????????????????## # ####?????????????? | | ????????????????????# ##??????????????????? | | ????????????????????## ???????????????????? | | ?????????????????????# # ??????????????????? | | ?????????????????????##### ?????????????????? | | ?????????????????????????? ????????????????? | | ?????????????????????????? #???????????????? | | ?????????????????????????? #???????????????? | | ?????????????????????????? #???????????????? | | ?????????????????????????? #???????????????? | | ?????????????????????????? #????????????????? | | ?????????????????????????? ???????????????????? | | ???????????????????????????#?????????????????????? | | ?????????????????????????????????????????????????? | | ?????????????????????????????????????????????????? | | ?????????????????????????????????????????????????? | | ?????????????????????????????????????????????????? | | ?????????????????????????????????????????????????? | | ?????????????????????????????????????????????????? | | ?????????????????????????????????????????????????? | | ?????????????????????????????????????????????????? | | ?????????????????????????????????????????????????? | +----------------------------------------------------+ Best States ------------- Heat Dissipation 25 Energy Generation 10 Energy Capacity 250 Matter Stores 300 Matter Capacity 300 Sight Range 16 Terrain Scan Density 10 Armor Coverage 80 Evasion (%) 40 Recoil Reduction 2 Item Schematics ----------------- None Robot Schematics ------------------ None Fabricated ------------ Nothing Repaired ---------- Lgt. Treads | 22% | -10/Materials Alien Tech Used ----------------- None Achievements -------------- None Challenges ------------ None Game ------ Seed NavigationStasisArray Manual? 0 Play Time 00:10:01 Cumulative 172.8 hours Start 2025.08.10 @ 21:24:41 End 2025.08.10 @ 21:33:47 Sessions 1 Manual Loads 0 Difficulty Rogue Special Mode None Game No. 67 Rogue 67 Adventurer 0 Explorer 0 Win Type - Total 2 Types 2/0/0/0/0/0/0/0/0/0 Lore% 42 Gallery% 57 Achievement% 53 Wizard Run 0 Options --------- Layout 1 ASCII 0 Keyboard 1 Movement Numpad Keybinds 0 Fullscreen 1 Font 32/SmallcapsGlow Map View 50x35 Zoom Use 0% Tactical HUD 1 Map Filters NONE Filters NONE Steam 1 RUN: 7ca4a976-c783-4e3e-9c79-d2b94f3a20c3